Cogmind - Beta 10.2 @@@ ROGUE MODE // 2021.01.12 @ 15:43:37 Player: Ben'n'Dan Result: Destroyed by 8R-AWN with 8R-AWN's Boregun Performance ------------- Evolutions (0) 0 Regions Visited (3) 600 Robots Destroyed (17) 85 Value Destroyed (298) 298 Prototype IDs (23) 460 Alien Tech Used (0) 0 Bonus (-33) -33 TOTAL SCORE: 1410 Bonus ------- Aligned with FarCom 300 Friendly Fire -333 Cogmind --------- Core Integrity 0/250 Matter 300/300 Energy 100/100 System Corruption 0% Temperature Cool (0) Movement Core (50) Location -10/Exiles Parts ------- > --- POWER (1) -------- (None) > --- PROPULSION (2) --- (None) > --- UTILITY (2) ------ Advanced Signal Interpreter > --- WEAPON (2) ------- Makeshift Axe > --- INVENTORY (4) ---- Light Nuclear Core Flight Unit Flight Unit System Shield Peak State ------------ > --- POWER ------------ Light Deuterium Engine > --- PROPULSION ------- Flight Unit Flight Unit > --- UTILITY ---------- Advanced Signal Interpreter System Shield > --- WEAPON ----------- Makeshift Axe > --- INVENTORY -------- Light Nuclear Core Flight Unit System Shield [Rating: 15] Favorites ----------- Power Ion Engine Engine Ion Engine Propulsion Flight Unit Leg Aluminum Leg Flight Unit Flight Unit Utility Advanced Signal Interpreter Device Sensor Array Storage Small Storage Unit Processor Advanced Signal Interpreter Hackware System Shield Protection Light Armor Plating Weapon Makeshift Axe Energy Gun Small Laser Ballistic Gun Light Assault Rifle Slashing Weapon Makeshift Axe Build | -11 -10 -10 -10 ------- Run | Scr Mat Min Exi Slots Evolved . | . . . . Power . | . . . . Propulsion . | . . . . Utility . | . . . . Weapon . | . . . . Parts Attached 27 | 7 6 14 . Power 4 | 1 1 2 . Engine 4 | 1 1 2 . Core . | . . . . Reactor . | . . . . Propulsion 9 | 2 2 5 . Treads . | . . . . Leg 4 | 2 2 . . Wheel . | . . . . Hover . | . . . . Flight 5 | . . 5 . Utility 6 | 1 1 4 . Device 1 | . . 1 . Storage 1 | 1 . . . Processor 2 | . . 2 . Hackware 1 | . . 1 . Protection 1 | . 1 . . Artifact . | . . . . Weapon 8 | 3 2 3 . Energy Gun 2 | 1 1 . . Energy Cannon . | . . . . Ballistic Gun 5 | 2 1 2 . Ballistic Cannon . | . . . . Launcher . | . . . . Special Weapon . | . . . . Impact Weapon . | . . . . Slashing Weapon 1 | . . 1 . Piercing Weapon . | . . . . Special Melee Weapon . | . . . . Unidentified Prototypes . | . . . . Parts Lost 6 | . 1 2 3 Power 1 | . . . 1 Propulsion 3 | . . 1 2 Utility 2 | . 1 1 . Weapon . | . . . . Highest Loss Streak 3 | . 1 1 3 Average Slot Usage (%) 87 | . 90 93 74 Engine 13 | . 14 14 13 Leg 11 | . 28 4 . Flight 16 | . . 23 26 Device 3 | . . 8 . Storage 5 | . 14 1 . Processor 8 | . . 12 14 Hackware 2 | . . 2 5 Protection 1 | . 5 . . Energy Gun 5 | . 14 2 . Ballistic Gun 10 | . 14 15 . Slashing Weapon 6 | . . 6 14 Naked Turns . | . . . . Heaviest Build 15 | 12 15 11 8 Greatest Support 20 | 20 20 20 8 Greatest Overweight (x) 1 | . . 1 . Average Overweight (x) . | . . . . Largest Inventory Capacity 6 | 6 6 6 4 Average Capacity 4 | 4 6 4 4 Most Carried 6 | 3 6 6 4 Average Carried 4 | 1 4 4 4 Final Capacity 6 | 6 6 4 4 Final Carried 6 | 2 6 4 4 Class Distribution -------------------- 57% | Mutant 42% | Scavenger-Mutant Dominant Class ---------------- Scavenger-Mutant | -10/Materials Scavenger-Mutant | -10/Mines Mutant | -10/Exiles Resources | -11 -10 -10 -10 ----------- Run | Scr Mat Min Exi Matter Collected 601 | 180 282 139 . Remotely . | . . . . Salvage Created 478 | . 357 121 . Parts 37 | . 29 8 . Haulers Intercepted 1 | . 1 . . Recyclers Shooed 2 | . 2 . . Parts Field Recycled . | . . . . Retrieved Matter . | . . . . Parts Self-Destructed . | . . . . Prevented . | . . . . Kills | -11 -10 -10 -10 ------- Run | Scr Mat Min Exi Combat Hostiles Destroyed 12 | . 7 5 . Melee 2 | . . 2 . Guns 10 | . 7 3 . Classes Destroyed 5 | . 5 . . Worker 3 | . 3 . . Hauler 1 | . 1 . . Watcher 1 | . 1 . . Swarmer 6 | . 3 3 . Grunt 6 | . 4 2 . Best Kill Streak 4 | . 4 3 . Combat Bots Only 3 | . 3 3 . Max Kills in Single Turn 2 | . 1 2 . Gunslinging 1 | . . 1 . Exploded . | . . . . Melee 1 | . . 1 . Uniques/NPCs Destroyed . | . . . . Combat | -11 -10 -10 -10 -------- Run | Scr Mat Min Exi Damage Taken 954 | . 400 193 361 Core 262 | . 39 27 196 Absorbed by Shields . | . . . . Core Remaining (%) 100 | 100 . . . Volleys Fired 51 | 3 44 4 . Largest 2 | 2 2 2 . Hottest 60 | 60 60 60 . Shots Fired 102 | 6 88 8 . Gun 102 | 6 88 8 . Cannon . | . . . . Launcher . | . . . . Special . | . . . . Kinetic 51 | 3 44 4 . Thermal 51 | 3 44 4 . Explosive . | . . . . Electromagnetic . | . . . . Robot Hit Streak 7 | 2 7 4 . Robot Miss Streak 2 | 1 2 2 . Penetration Max . | . . . . Secondary Targets 1 | . . 1 . Max Gunslinging Chain 1 | . . 1 . Shots Hit Robots 78 | 4 54 9 11 Core Hits 29 | 1 21 5 2 Critical Hits 1 | . . . 1 Critical Kills . | . . . . Critical Parts Destroyed . | . . . . Melee Attacks 23 | . . 6 17 Impact . | . . . . Slashing 23 | . . 6 17 Piercing . | . . . . Sneak Attacks 1 | . . . 1 Combat Hostiles . | . . . . Follow-up Attacks . | . . . . Damage Inflicted 1330 | 34 618 200 478 Guns 707 | 34 618 55 . Cannons . | . . . . Explosions . | . . . . Melee 623 | . . 145 478 Ramming . | . . . . Kinetic 335 | 11 301 23 . Thermal 372 | 23 317 32 . Explosive . | . . . . Electromagnetic . | . . . . Impact . | . . . . Slashing 623 | . . 145 478 Piercing . | . . . . Highest Corruption . | . . . . Average Corruption . | . . . . Corruption Purged . | . . . . Overload Shots . | . . . . Overflow Damage 6 | . . . 6 Projectiles . | . . . . Explosions . | . . . . Melee 6 | . . . 6 Knockbacks . | . . . . Impact . | . . . . Kinetic . | . . . . Secondary . | . . . . Self-Inflicted Damage . | . . . . Shots . | . . . . Rammed . | . . . . Targets Rammed . | . . . . Kicked . | . . . . Crushed . | . . . . Highest Temperature 192 | . 192 20 . Average Temperature 90 | . 95 15 . Received Heat Transfer 252 | . 210 42 . Siege Activations . | . . . . Robots Corrupted . | . . . . Combat Hostiles . | . . . . Parts Fried . | . . . . Impact Corruptions . | . . . . Robots Melted . | . . . . Combat Hostiles . | . . . . Parts Melted 2 | . 1 1 . Heat Transferred 850 | 50 725 75 . Parts Sabotaged . | . . . . Parts Stolen . | . . . . Parts Stripped . | . . . . Power Chain Reactions . | . . . . Missiles Intercepted . | . . . . Alert | -11 -10 -10 -10 ------- Run | Scr Mat Min Exi Peak Influence 278 | . 278 233 . Initial 108 | . . 108 . Average 151 | . 136 195 . Maximum Alert Level 1 | . 1 1 . Low Security (%) 66 | 100 71 54 . Level 1 33 | . 28 45 . Level 2 . | . . . . Level 3 . | . . . . Level 4 . | . . . . Level 5 . | . . . . High Security . | . . . . Max Security . | . . . . Squads Dispatched 1 | . . 1 . Investigation 1 | . . 1 . Extermination . | . . . . Reinforcement . | . . . . Assault . | . . . . Garrison . | . . . . Intercept . | . . . . Construction Impeded . | . . . . Haulers Reinforced . | . . . . Stealth | -11 -10 -10 -10 --------- Run | Scr Mat Min Exi Distress Signals 1 | . 1 . . Communications Jammed . | . . . . Distress Signals . | . . . . Times Spotted 23 | . 14 8 1 Peak Tracking Total 4 | . 4 3 2 Tactical Retreats 4 | . 4 . . Traps | -11 -10 -10 -10 ------- Run | Scr Mat Min Exi Traps Triggered . | . . . . Indirectly . | . . . . Trap Hack Attempts . | . . . . Triggered . | . . . . Disarmed . | . . . . Reprogrammed . | . . . . Reused . | . . . . Traps Extracted . | . . . . Installed . | . . . . Triggered . | . . . . Machines | -11 -10 -10 -10 ---------- Run | Scr Mat Min Exi Machines Disabled . | . . . . Max in Single Turn . | . . . . Machines Sabotaged . | . . . . Garrisons Compromised . | . . . . Overloaded Fab Kills . | . . . . Fab Network Shutdowns . | . . . . Hacking | -11 -10 -10 -10 --------- Run | Scr Mat Min Exi Machines Accessed 9 | . 2 2 5 Terminals 2 | . 2 . . Fabricators . | . . . . Repair Stations . | . . . . Recycling Units . | . . . . Scanalyzers . | . . . . Garrison Access . | . . . . Total Hacks 56 | . 4 2 50 Successful 54 | . 2 2 50 Failed 2 | . 2 . . Catastrophic . | . . . . Database Lockouts . | . . . . Manual 1 | . . . 1 Terminals 4 | . 4 . . Fabricators . | . . . . Repair Stations . | . . . . Recycling Units . | . . . . Scanalyzers . | . . . . Garrison Access . | . . . . Terminal Hacks 54 | . 2 2 50 Record 49 | . . . 49 Open Door 2 | . . 2 . Branch Access Points 1 | . 1 . . Locate Traps 1 | . 1 . . EX-Prototype ID Bank 1 | . . . 1 Fabricator Hacks . | . . . . Repair Station Hacks . | . . . . Recycling Unit Hacks . | . . . . Scanalyzer . | . . . . Garrison Access Hacks . | . . . . Unauthorized Hacks . | . . . . Terminals . | . . . . Fabricators . | . . . . Repair Stations . | . . . . Recycling Units . | . . . . Scanalyzers . | . . . . Garrison Access . | . . . . Data Cores Recovered . | . . . . Used . | . . . . Hacking Detections 1 | . 1 . . Full Trace Events . | . . . . Feedback Events . | . . . . Feedback Blocked . | . . . . Robot Schematics Acquired . | . . . . Robots Built . | . . . . Matter . | . . . . Time . | . . . . Total Robot Build Rating . | . . . . Part Schematics Acquired . | . . . . Parts Built . | . . . . Matter . | . . . . Time . | . . . . Total Part Build Rating . | . . . . Parts Repaired . | . . . . Time . | . . . . Parts Recycled . | . . . . Recycled Matter . | . . . . Retrieved Matter . | . . . . Retrieved Components . | . . . . Parts Scanalyzed . | . . . . Part Schematics Acquired . | . . . . Parts Damaged . | . . . . Bothacking | -11 -10 -10 -10 ------------ Run | Scr Mat Min Exi Used RIF Installer . | . . . . Robots Hacked . | . . . . Non-combat . | . . . . Combat . | . . . . Robot Hacks Applied . | . . . . Relay Couplers Released . | . . . . Robots Rewired . | . . . . Allies Hacked . | . . . . Hacks Repelled . | . . . . Allies | -11 -10 -10 -10 -------- Run | Scr Mat Min Exi Total Allies . | . . . . Largest Group . | . . . . Highest-Rated Group . | . . . . Highest-Rated Ally . | . . . . Total Orders . | . . . . Ally Attacks . | . . . . Total Damage . | . . . . Kills . | . . . . Allies Corrupted . | . . . . Allies Melted . | . . . . Intel | -11 -10 -10 -10 ------- Run | Scr Mat Min Exi Robot Analysis Total . | . . . . Derelict Logs Recovered 2 | . . 2 . Drone Launches . | . . . . Drone Recoveries . | . . . . Exploration | -11 -10 -10 -10 ------------- Run | Scr Mat Min Exi Turns Passed 1165 | 71 387 378 329 Spaces Moved 1519 | 45 192 680 602 Core 5 | 5 . . . Treads . | . . . . Legs 261 | 40 192 29 . Wheels . | . . . . Hover . | . . . . Flight 1253 | . . 651 602 Fastest Speed 37 | 50 120 37 37 Average Speed 51 | 112 120 40 37 Slowest Speed 120 | 120 120 120 37 Overloaded Moves . | . . . . Propulsion Burnouts . | . . . . Robots Hopped 3 | . . 3 . Cave-ins Triggered . | . . . . Time Travels 1 | . . . 1 Exploration Rate (%) 56 | 6 38 94 89 Regions Visited 3 Branch Regions 2 Pre-discovered Areas 1 | . . . 1 Known Exits Taken 2 | . 1 1 . Unknown Exits Taken 1 | 1 . . . Scrap Searched 3 | . . 3 . Spaces Dug . | . . . . Terrain Destroyed . | . . . . Melee . | . . . . Projectile . | . . . . AOE . | . . . . Terrain Rammed . | . . . . Walls Destroyed . | . . . . Machines Disabled . | . . . . Actions | -11 -10 -10 -10 --------- Run | Scr Mat Min Exi Total 1775 | 56 261 766 692 Wait 135 | . 15 48 72 Move 1510 | 44 191 673 602 Hop 3 | . . 3 . Pick Up 10 | 2 2 6 . Fast Attach 12 | 5 1 6 . Attach 4 | 1 . 3 . Detach . | . . . . Swap 11 | 1 5 5 . Drop 16 | . 3 12 1 Fire 51 | 3 44 4 . Melee 23 | . . 6 17 Ram . | . . . . Kick . | . . . . Crush . | . . . . Escape Stasis . | . . . . Rewire . | . . . . Trap . | . . . . Miscellaneous . | . . . . Route ------- -11/Scrapyard -10/Materials (discovered 3 exits: [*Mat] / *Min x2) -10/Mines (discovered 3 exits: [*Mat x2] / *Exi) -10/Exiles (discovered 1 exit: [*Min]) History --------- Turn | Location | Event 3 | -11/Scrapyard | Discovered new exit (range 16) 72 | -11/Scrapyard | Entered Materials 334 | -10/Materials | Discovered new exit (range 14) 444 | -10/Materials | Identified exit to Mines 459 | -10/Materials | Entered Mines 553 | -10/Mines | Met a Derelict shopkeep closing up shop 578 | -10/Mines | Build established: Scavenger-Mutant 612 | -10/Mines | Discovered new exit (range 10) 658 | -10/Mines | A weapon hastily lodged in a ceiling crevice suddenly fell to the ground 732 | -10/Mines | Learned Materials security intel 745 | -10/Mines | Met a Derelict who couldn't figure out how to use a Trap Extractor 795 | -10/Mines | Discovered new exit (range 12) 836 | -10/Mines | Deemed a non-threat by the Exiles lab entrance 836 | -10/Mines | Discovered new exit (range 5) 837 | -10/Mines | Identified exit to Exiles 837 | -10/Mines | Entered Exiles 847 | -10/Exiles | Met 8R-AWN 853 | -10/Exiles | Met EX-HEX 867 | -10/Exiles | Met EX-DEC 870 | -10/Exiles | Learned location of Zion (-7) 887 | -10/Exiles | Visited The Gauntlet 929 | -10/Exiles | Met EX-BIN 955 | -10/Exiles | Aligned with FarCom system 956 | -10/Exiles | Given EX-Vault access code 964 | -10/Exiles | Opened EX-Vault 968 | -10/Exiles | Found Chronowheel 968 | -10/Exiles | Activated Chronowheel 968 | -10/Exiles | Spacetime reconverged on an earlier point 977 | -10/Exiles | Warned to stay clear of 0b10 Research branches 981 | -10/Exiles | Exiles lab attacked by MAIN.C 1046 | -10/Exiles | Build established: Mutant 1077 | -10/Exiles | Discovered new exit (range 14) 1133 | -10/Exiles | Attacked by the Exiles 1151 | -10/Exiles | Core integrity fell below 50% 1162 | -10/Exiles | Core integrity fell below 20% 1166 | -10/Exiles | Destroyed by 8R-AWN with 8R-AWN's Boregun Last Messages --------------- 01139_ Penetrated by HV Slug. 01139_ HV Slug penetrates Machine. 01139_ Penetrated by HV Slug. 01141_ HV Slug penetrates Wall. 01141_ Penetrated by HV Slug. 01141_ HV Slug penetrates Wall. 01143_ Penetrated by HV Slug. 01143_ Flight Unit destroyed. 01143_ Penetrated by HV Slug. 01148_ HV Slug penetrates Wall. 01148_ HV Slug penetrates Machine. 01148_ Machine disabled. 01149_ 8R-AWN suffers critical hit. 01150_ Penetrated by HV Slug. 01152_ Lgt. Deuterium Engine destroyed. 01155_ HV Slug penetrates Wall. 01157_ Penetrated by HV Slug. 01157_ Critical hit. 01157_ Flight Unit destroyed. 01157_ Penetrated by HV Slug. Map ----- +----------------------------------------------------+ | ?????????????????????????????????????????????????? | | ?????????????????????????????????????????????????? | | ?????????????????????????????????????????????????? | | ?????????????????????????????????????????????????? | | ?????????????????????????????????????????????????? | | ?????????????????????????????????????????????????? | | ?????????????????????????????????????????????????? | | ?????????????????????????????????????????????????? | | ?????????????????????????????????????????????????? | | ?????????????????????????????????????????????????? | | ?????????????????????????????????????????????????? | | ?????????????????????????????????????????????????? | | ?????????????#####???????????????????????????????? | | ????????????## ##??????????????????????????????? | | ????????????# #??????????????????????????????? | | ????????????# < #??????????????????????????????? | | ????????????# ###????????????????????????????? | | ????????????# #????????????????????????????? | | ????????????# ##????????????????????????????? | | ????????????## #?????????????????????????????? | | ?????????????# ##????????????????????????????? | | ?????????????## #????????????#######?????????? | | ??????????????# #######??????#!!! "#?????????? | | ??????????????# #""##?????# "#?????????? | | ??????????????## g #?????# "#?????????? | | ???????????????##" @ ##???## ""#?????????? | | ???????????????#"" #####" ""#?????????? | | ???????????????#### ##" ""#?????????? | | ??????????????????## #"" #???????????? | | ???????????????????#"## #???????????? | | ???????????????????####### ##??????????? | | ?????????????????????????### "#??????????? | | ???????????????????########" ###????????? | | ???????????????????# !!""""" ##???????? | | ???????????????????#! ### " ######??? | | ???????????????????#! #?## """#### | | ???????????????????#! ##??#" | | ???????????????????# !""""""###???#"# | | ???????????????????##########?????#### | | ?????????????????????????????????????### | | ???????????????????????????????????????### | | ?????????????????????????????????????????## | | ??????????????????????????????????????????## | | ???????????????????????????????????????????##" | | ????????????????????????????????????????????#""" | | ???????????????????????????????????????????##" | | ???????????????????????????????????????????#"" | | ??????????????????????????????????????????##""" | | ??????????????????????????????????????????#""" | | ??????????????????????????????????????????#""" | +----------------------------------------------------+ Best States ------------- Heat Dissipation 25 Energy Generation 14 Energy Capacity 250 Matter Stores 300 Matter Capacity 300 Sight Range 16 Robot Scan Range 10 Terrain Scan Density 10 Armor Coverage 150 Evasion (%) 62 Defensive Hacking 10 Item Schematics ----------------- None Robot Schematics ------------------ None Fabricated ------------ Nothing Alien Tech Used ----------------- None Achievements -------------- None Challenges ------------ None Game ------ Seed FissionQuantumDevice Manual? 0 Play Time 00:15:07 Cumulative 131.3 hours Start 2021.01.12 @ 15:28:07 End 2021.01.12 @ 15:43:37 Sessions 1 Manual Loads 0 Difficulty Rogue Special Mode None Game No. 335 Rogue 327 Adventurer 8 Explorer 0 Win Type - Total 9 Types 6/0/2/1/0/0/0/0/0 Lore% 76 Gallery% 79 Achievement% 60 Wizard Run 0 Options --------- ASCII 0 Keyboard 0 Movement Mouse Keybinds 0 Fullscreen 1 Font 18/SmallcapsGlow Map View 76x50 Tactical HUD 1 Map Filters NONE Filters NONE Steam 1 RUN: d5597849-b993-4f0a-9b58-eabb292125d9